fUSD/lending_fUSD_20260531
["ID","MTS","AMOUNT","RATE_DAILY","PERIOD"]
[423516354,1780182640000,-151.0,0.00016607,2]
[423516357,1780182640000,-495.11,0.00016767,2]
[423516356,1780182640000,-168.13,0.00016712,2]
[423516359,1780182640000,-152.0,0.00016896,2]
[423516361,1780182640000,-2510.02,0.00017021,2]
[423516355,1780182640000,-150.44,0.00016629,2]
[423516364,1780182640000,-350.0,0.00017171,2]
[423516360,1780182640000,-500.0,0.00017014,2]
[423516358,1780182640000,-151.40889709,0.00016792,2]
[423516406,1780182640000,-608.23812312,0.00018,2]
[423516396,1780182640000,-1545.0,0.00017957,2]
[423516407,1780182640000,-1702.29356295,0.00018,2]
[423516453,1780182640000,-377.783006,0.000184,2]
[423516456,1780182640000,-162.476006,0.000184,2]
[423516469,1780182640000,-608.23812312,0.000185,2]
[423516461,1780182640000,-162.476006,0.000184,2]
[423516473,1780182640000,-4666.368867,0.00018563,2]
[423516477,1780182640000,-4666.368867,0.00018563,2]
[423516479,1780182640000,-4666.368867,0.00018563,2]
[423516471,1780182640000,-1702.29356295,0.000185,2]
[423516467,1780182640000,-2074.8,0.0001841,2]
[423516458,1780182640000,-162.476006,0.000184,2]
[423516465,1780182640000,-151.0,0.000184,2]
[423516463,1780182640000,-162.476006,0.000184,2]
[423516475,1780182640000,-4666.368867,0.00018563,2]
[423516481,1780182640000,-1473.345959,0.00018563,2]
[423516495,1780182640000,-995.586587,0.00018577,2]
[423516483,1780182640000,-1473.345959,0.00018563,2]
[423516497,1780182640000,-995.586587,0.00018577,2]
[423516499,1780182640000,-1545.0,0.00018604,2]
[423516501,1780182640000,-1543.0,0.00018604,2]
[423516503,1780182640000,-608.23812312,0.000187,2]
[423516487,1780182640000,-1473.345959,0.00018563,2]
[423516394,1780182640000,-1545.0,0.00017957,2]
[423516507,1780182640000,-4705.88294185,0.00018741,2]
[423516493,1780182640000,-995.586587,0.00018577,2]
[423516491,1780182640000,-995.586587,0.00018577,2]
[423516489,1780182640000,-7171.77534689,0.00018566,2]
[423516510,1780182640000,-2000.0,0.00018845,2]
[423516506,1780182640000,-1702.29356295,0.000187,2]
[423516512,1780182640000,-500.0,0.0001894,2]
[423516451,1780182640000,-377.783006,0.000184,2]
[423516447,1780182640000,-377.783006,0.000184,2]
[423516485,1780182640000,-1473.345959,0.00018563,2]
[423516449,1780182640000,-377.783006,0.000184,2]
[423516445,1780182640000,-1702.29356295,0.000184,2]
[423516405,1780182640000,-350.0,0.00018,2]
[423516398,1780182640000,-1545.0,0.00017957,2]
[423516397,1780182640000,-1545.0,0.00017957,2]
[423516403,1780182640000,-1208.12473226,0.00018,2]
[423516404,1780182640000,-175.87946649,0.00018,2]
[423516402,1780182640000,-1310.52,0.00017968,2]
[423516400,1780182640000,-1545.0,0.00017957,2]
[423516401,1780182640000,-1577.66327408,0.00017957,2]
[423516428,1780182640000,-947.2,0.00018257,2]
[423516424,1780182640000,-1702.29356295,0.000182,2]
[423516412,1780182640000,-231.984886,0.00018,2]
[423516408,1780182640000,-173.99832511,0.00018,2]
[423516418,1780182640000,-1802.86223533,0.000181,2]
[423516399,1780182640000,-1545.0,0.00017957,2]
[423516409,1780182640000,-238.640509,0.00018,2]
[423516410,1780182640000,-231.984886,0.00018,2]
[423516439,1780182640000,-954.128962,0.00018299,2]
[423516441,1780182640000,-954.128962,0.00018299,2]
[423516432,1780182640000,-1086.10079432,0.00018299,5]
[423516435,1780182640000,-954.128962,0.00018299,2]
[423516437,1780182640000,-954.128962,0.00018299,2]
[423516443,1780182640000,-608.23812312,0.000184,2]
[423516416,1780182640000,-231.984886,0.00018,2]
[423516430,1780182640000,-1086.10079432,0.00018299,5]
[423516422,1780182640000,-608.23812312,0.000182,2]
[423516414,1780182640000,-231.984886,0.00018,2]
[423516425,1780182640000,-173.99832511,0.000182,2]
[423516433,1780182640000,-1086.10079431,0.00018299,5]
[423516420,1780182640000,-513.95,0.000181,2]
[423516565,1780182641000,-781.861445,0.00019178,2]
[423516564,1780182641000,-781.861445,0.00019178,2]
[423516567,1780182641000,-781.861445,0.00019178,2]
[423516571,1780182641000,-781.861445,0.00019178,2]
[423516559,1780182641000,-781.861445,0.00019178,2]
[423516563,1780182641000,-781.861445,0.00019178,2]
[423516562,1780182641000,-781.861445,0.00019178,2]
[423516558,1780182641000,-781.861445,0.00019178,2]
[423516561,1780182641000,-781.861445,0.00019178,2]
[423516560,1780182641000,-781.861445,0.00019178,2]
[423516583,1780182641000,-335.640859,0.00019178,2]
[423516570,1780182641000,-781.861445,0.00019178,2]
[423516568,1780182641000,-781.861445,0.00019178,2]
[423516569,1780182641000,-781.861445,0.00019178,2]
[423516577,1780182641000,-335.640859,0.00019178,2]
[423516573,1780182641000,-781.861445,0.00019178,2]
[423516578,1780182641000,-335.640859,0.00019178,2]
[423516582,1780182641000,-335.640859,0.00019178,2]
[423516581,1780182641000,-335.640859,0.00019178,2]
[423516576,1780182641000,-335.640859,0.00019178,2]
[423516554,1780182641000,-151.0,0.00019178,2]
[423516566,1780182641000,-781.861445,0.00019178,2]
[423516575,1780182641000,-335.640859,0.00019178,2]
[423516532,1780182641000,-3410.050758,0.00018986,2]
[423516557,1780182641000,-200.670542,0.00019178,2]
[423516522,1780182641000,-3410.050758,0.00018986,2]
[423516524,1780182641000,-3410.050758,0.00018986,2]
[423516526,1780182641000,-3410.050758,0.00018986,2]
[423516516,1780182641000,-3410.050758,0.00018986,2]
[423516518,1780182641000,-3410.050758,0.00018986,2]
[423516514,1780182641000,-162.61,0.00018957,2]
[423516528,1780182641000,-3410.050758,0.00018986,2]
[423516520,1780182641000,-3410.050758,0.00018986,2]
[423516530,1780182641000,-3410.050758,0.00018986,2]
[423516534,1780182641000,-3410.050758,0.00018986,2]
[423516536,1780182641000,-3410.050758,0.00018986,2]
[423516538,1780182641000,-3410.050758,0.00018986,2]
[423516540,1780182641000,-3410.050758,0.00018986,2]
[423516542,1780182641000,-3410.050758,0.00018986,2]
[423516544,1780182641000,-3410.050758,0.00018986,2]
[423516548,1780182641000,-5238.99494008,0.00019,2]
[423516556,1780182641000,-151.0,0.00019178,2]
[423516546,1780182641000,-3410.050758,0.00018986,2]
[423516550,1780182641000,-455.48111642,0.0001915,2]
[423516552,1780182641000,-3000.0,0.00019178,2]
[423516555,1780182641000,-151.0,0.00019178,2]
[423516553,1780182641000,-151.0,0.00019178,2]
[423516579,1780182641000,-335.640859,0.00019178,2]
[423516604,1780182641000,-938.291481,0.00019178,2]
[423516574,1780182641000,-335.640859,0.00019178,2]
[423516615,1780182641000,-1680.0,0.00019843,5]
[423516610,1780182641000,-521.98632613,0.00019842,2]
[423516622,1780182641000,-162.476006,0.00019843,2]
[423516621,1780182641000,-162.476006,0.00019843,2]
[423516612,1780182641000,-204.89987103,0.00019842,2]
[423516611,1780182641000,-12157.14160688,0.00019842,2]
[423516609,1780182641000,-151.0,0.00019842,2]
[423516613,1780182641000,-1433.36794996,0.00019842,2]
[423516616,1780182641000,-377.783006,0.00019843,2]
[423516618,1780182641000,-377.783006,0.00019843,2]
[423516620,1780182641000,-162.476006,0.00019843,2]
[423516617,1780182641000,-377.783006,0.00019843,2]
[423516619,1780182641000,-377.782997,0.00019843,2]
[423516624,1780182641000,-151.0,0.00019843,2]
[423516623,1780182641000,-162.476006,0.00019843,2]
[423516626,1780182641000,-500.0,0.00019941,2]
[423516630,1780182641000,-73362.5689367,0.00019942,2]
[423516627,1780182641000,-268.84358358,0.00019941,2]
[423516625,1780182641000,-947.2,0.00019917,2]
[423516628,1780182641000,-117313.8140397,0.00019942,2]
[423516629,1780182641000,-152071.6605162,0.00019942,2]
[423516614,1780182641000,-1681.0,0.00019843,5]
[423516601,1780182641000,-938.291481,0.00019178,2]
[423516572,1780182641000,-781.861445,0.00019178,2]
[423516606,1780182641000,-151.0,0.0001944,2]
[423516607,1780182641000,-246.0,0.00019452,2]
[423516580,1780182641000,-335.640859,0.00019178,2]
[423516585,1780182641000,-335.640859,0.00019178,2]
[423516587,1780182641000,-335.640859,0.00019178,2]
[423516595,1780182641000,-938.291481,0.00019178,2]
[423516589,1780182641000,-335.640859,0.00019178,2]
[423516586,1780182641000,-335.640859,0.00019178,2]
[423516596,1780182641000,-938.291481,0.00019178,2]
[423516588,1780182641000,-335.640859,0.00019178,2]
[423516591,1780182641000,-938.291481,0.00019178,2]
[423516593,1780182641000,-938.291481,0.00019178,2]
[423516584,1780182641000,-335.640859,0.00019178,2]
[423516590,1780182641000,-938.291481,0.00019178,2]
[423516594,1780182641000,-938.291481,0.00019178,2]
[423516608,1780182641000,-7171.77534689,0.00019833,2]
[423516597,1780182641000,-938.291481,0.00019178,2]
[423516605,1780182641000,-938.291481,0.00019178,2]
[423516603,1780182641000,-938.291481,0.00019178,2]
[423516598,1780182641000,-938.291481,0.00019178,2]
[423516600,1780182641000,-938.291481,0.00019178,2]
[423516599,1780182641000,-938.291481,0.00019178,2]
[423516592,1780182641000,-938.291481,0.00019178,2]
[423516602,1780182641000,-938.291481,0.00019178,2]
[423516640,1780182642000,-151.0,0.00019942,2]
[423516639,1780182642000,-231.984889,0.00019942,2]
[423516654,1780182642000,-335.640859,0.00019942,2]
[423516652,1780182642000,-781.861448,0.00019942,2]
[423516641,1780182642000,-151.0,0.00019942,2]
[423516635,1780182642000,-151.0,0.00019942,2]
[423516631,1780182642000,-29437.0306,0.00013486,2]
[423516637,1780182642000,-231.984886,0.00019942,2]
[423516634,1780182642000,-152.736117,0.00019942,2]
[423516636,1780182642000,-231.984886,0.00019942,2]
[423516633,1780182642000,-123133.0150032,0.00019942,2]
[423516632,1780182642000,-215.58360558,0.00014079,2]
[423516644,1780182642000,-995.586587,0.00019942,2]
[423516638,1780182642000,-231.984886,0.00019942,2]
[423516651,1780182642000,-781.861445,0.00019942,2]
[423516647,1780182642000,-781.861445,0.00019942,2]
[423516645,1780182642000,-995.586584,0.00019942,2]
[423516653,1780182642000,-335.640859,0.00019942,2]
[423516663,1780182642000,-1473.345959,0.00019942,2]
[423516664,1780182642000,-1473.345959,0.00019942,2]
[423516665,1780182642000,-1473.345951,0.00019942,2]
[423516660,1780182642000,-4666.368867,0.00019942,2]
[423516659,1780182642000,-4666.368867,0.00019942,2]
[423516666,1780182642000,-3410.050758,0.00019942,2]
[423516662,1780182642000,-1473.345959,0.00019942,2]
[423516661,1780182642000,-4666.368873,0.00019942,2]
[423516658,1780182642000,-4666.368867,0.00019942,2]
[423516655,1780182642000,-335.640859,0.00019942,2]
[423516642,1780182642000,-995.586587,0.00019942,2]
[423516643,1780182642000,-995.586587,0.00019942,2]
[423516649,1780182642000,-781.861445,0.00019942,2]
[423516657,1780182642000,-335.640856,0.00019942,2]
[423516707,1780182643000,-151.0,0.00020106,2]
[423516706,1780182643000,-743.50770149,0.00020106,2]
[423516705,1780182643000,-151.0,0.00020106,2]
[423516704,1780182643000,-200.0,0.00020106,2]
[423516698,1780182643000,-234.0,0.0002,2]
[423516692,1780182643000,-693.0,0.0002,2]
[423516700,1780182643000,-471.0,0.0002,2]
[423516696,1780182643000,-860.0,0.0002,2]
[423516697,1780182643000,-272.0,0.0002,2]
[423516708,1780182643000,-151.0,0.00020106,2]
[423516702,1780182643000,-513.95,0.0002,2]
[423516703,1780182643000,-174.61919141,0.00020106,2]
[423516715,1780182643000,-1428.38747117,0.00020106,2]
[423516711,1780182643000,-221.88543241,0.00020106,2]
[423516713,1780182643000,-200.0,0.00020106,2]
[423516709,1780182643000,-279.9045709,0.00020106,2]
[423516710,1780182643000,-151.0,0.00020106,2]
[423516718,1780182643000,-151.0,0.00020106,2]
[423516714,1780182643000,-151.0,0.00020106,2]
[423516717,1780182643000,-230.09519341,0.00020106,2]
[423516716,1780182643000,-578.20924308,0.00020106,2]
[423516725,1780182643000,-266.08633524,0.00020106,2]
[423516720,1780182643000,-247.43723804,0.00020106,2]
[423516719,1780182643000,-238.60871557,0.00020106,2]
[423516694,1780182643000,-287.0,0.0002,2]
[423516712,1780182643000,-9552.16786547,0.00020106,2]
[423516699,1780182643000,-980.0,0.0002,2]
[423516667,1780182643000,-3410.050758,0.00019942,2]
[423516695,1780182643000,-207.0,0.0002,2]
[423516722,1780182643000,-209.40437684,0.00020106,2]
[423516679,1780182643000,-1555.59036494,0.0002,2]
[423516669,1780182643000,-954.128962,0.00019942,2]
[423516668,1780182643000,-954.128962,0.00019942,2]
[423516670,1780182643000,-3410.050758,0.00019942,2]
[423516671,1780182643000,-954.128962,0.00019942,2]
[423516677,1780182643000,-938.291483,0.00019942,2]
[423516674,1780182643000,-938.291481,0.00019942,2]
[423516675,1780182643000,-938.291481,0.00019942,2]
[423516673,1780182643000,-954.128955,0.00019942,2]
[423516672,1780182643000,-3410.050765,0.00019942,2]
[423516678,1780182643000,-4705.88294185,0.00019972,2]
[423516693,1780182643000,-627.0,0.0002,2]
[423516676,1780182643000,-938.291481,0.00019942,2]
[423516683,1780182643000,-13109.26979845,0.0002,2]
[423516686,1780182643000,-1355.82668261,0.0002,2]
[423516689,1780182643000,-1994.07391152,0.0002,2]
[423516687,1780182643000,-400.0,0.0002,2]
[423516690,1780182643000,-421.0,0.0002,2]
[423516688,1780182643000,-280.0,0.0002,2]
[423516682,1780182643000,-8000.0,0.0002,2]
[423516684,1780182643000,-152.0,0.0002,2]
[423516685,1780182643000,-4387.56797435,0.0002,2]
[423516691,1780182643000,-204.0,0.0002,2]
[423516681,1780182643000,-3950.0,0.0002,2]
[423516701,1780182643000,-178.37,0.0002,2]
[423516680,1780182643000,-178.99913839,0.0002,2]
[423516721,1780182643000,-151.0,0.00020106,2]
[423516723,1780182643000,-256.59241585,0.00020106,2]
[423516727,1780182643000,-151.0,0.00020106,2]
[423516760,1780182643000,-1994.07391152,0.000202,2]
[423516758,1780182643000,-151.0,0.00020161,2]
[423516757,1780182643000,-152.0,0.00020106,2]
[423516756,1780182643000,-152.0,0.00020106,2]
[423516763,1780182643000,-151.0,0.00020271,2]
[423516774,1780182643000,-151.0,0.00020491,2]
[423516773,1780182643000,-862.28603014,0.00020436,2]
[423516762,1780182643000,-745.65223615,0.00020216,2]
[423516764,1780182643000,-773.24136889,0.00020271,2]
[423516765,1780182643000,-246.0,0.00020273,2]
[423516771,1780182643000,-1994.07391152,0.000204,2]
[423516767,1780182643000,-151.0,0.00020326,2]
[423516759,1780182643000,-719.04747942,0.00020161,2]
[423516772,1780182643000,-151.0,0.00020436,2]
[423516769,1780182643000,-151.0,0.00020381,2]
[423516770,1780182643000,-831.51979762,0.00020381,2]
[423516777,1780182643000,-151.0,0.00020546,2]
[423516776,1780182643000,-927.27566594,0.00020546,2]
[423516778,1780182643000,-1994.07391152,0.000206,2]
[423516782,1780182643000,-181.08010149,0.00020654,2]
[423516775,1780182643000,-894.19061325,0.00020491,2]
[423516779,1780182643000,-961.58486558,0.00020601,2]
[423516780,1780182643000,-151.0,0.00020601,2]
[423516781,1780182643000,-202.79438074,0.00020654,2]
[423516783,1780182643000,-771.01748644,0.00020654,2]
[423516724,1780182643000,-151.0,0.00020106,2]
[423516768,1780182643000,-2074.8,0.00020381,2]
[423516755,1780182643000,-151.0,0.00020106,2]
[423516766,1780182643000,-801.85129954,0.00020326,2]
[423516761,1780182643000,-151.0,0.00020216,2]
[423516729,1780182643000,-151.0,0.00020106,2]
[423516753,1780182643000,-152.0,0.00020106,2]
[423516735,1780182643000,-307.70715698,0.00020106,2]
[423516726,1780182643000,-2080.17592889,0.00020106,2]
[423516732,1780182643000,-151.0,0.00020106,2]
[423516730,1780182643000,-693.39197629,0.00020106,2]
[423516737,1780182643000,-319.09232179,0.00020106,2]
[423516734,1780182643000,-151.0,0.00020106,2]
[423516731,1780182643000,-286.14099624,0.00020106,2]
[423516736,1780182643000,-152.0,0.00020106,2]
[423516733,1780182643000,-296.7282131,0.00020106,2]
[423516739,1780182643000,-152.0,0.00020106,2]
[423516749,1780182643000,-152.0,0.00020106,2]
[423516728,1780182643000,-275.93152964,0.00020106,2]
[423516744,1780182643000,-151.0,0.00020106,2]
[423516741,1780182643000,-152.0,0.00020106,2]
[423516743,1780182643000,-152.0,0.00020106,2]
[423516740,1780182643000,-151.0,0.00020106,2]
[423516742,1780182643000,-151.0,0.00020106,2]
[423516746,1780182643000,-151.0,0.00020106,2]
[423516747,1780182643000,-152.0,0.00020106,2]
[423516748,1780182643000,-151.0,0.00020106,2]
[423516745,1780182643000,-152.0,0.00020106,2]
[423516751,1780182643000,-152.0,0.00020106,2]
[423516738,1780182643000,-151.0,0.00020106,2]
[423516752,1780182643000,-151.0,0.00020106,2]
[423516750,1780182643000,-151.0,0.00020106,2]
[423516826,1780182644000,-194.72792766,0.0002175,2]
[423516827,1780182644000,-8158.51532249,0.0002175,2]
[423516816,1780182644000,-855.4942888,0.00021202,2]
[423516822,1780182644000,-2236.95670847,0.00021202,2]
[423516825,1780182644000,-225.51075439,0.000215,2]
[423516824,1780182644000,-495.11,0.00021205,2]
[423516818,1780182644000,-10272.10520532,0.00021202,2]
[423516821,1780182644000,-246.04626518,0.00021202,2]
[423516817,1780182644000,-344.4553208,0.00021202,2]
[423516814,1780182644000,-7171.77534689,0.000211,2]
[423516828,1780182644000,-200.0,0.0002175,2]
[423516823,1780182644000,-4705.88294185,0.00021204,2]
[423516832,1780182644000,-513.95,0.000219,2]
[423516838,1780182644000,-151.0,0.00021918,2]
[423516831,1780182644000,-151.0,0.00021844,2]
[423516829,1780182644000,-1592.87721992,0.0002175,2]
[423516834,1780182644000,-151.0,0.00021918,2]
[423516839,1780182644000,-151.0,0.00021918,2]
[423516842,1780182644000,-5000.0,0.00021918,2]
[423516840,1780182644000,-151.0,0.00021918,2]
[423516833,1780182644000,-151.0,0.00021918,2]
[423516835,1780182644000,-151.0,0.00021918,2]
[423516837,1780182644000,-151.0,0.00021918,2]
[423516844,1780182644000,-151.0,0.00021931,2]
[423516836,1780182644000,-151.0,0.00021918,2]
[423516841,1780182644000,-166.940894,0.00021918,2]
[423516815,1780182644000,-187.78006524,0.00021202,2]
[423516830,1780182644000,-2319.72410669,0.0002175,2]
[423516811,1780182644000,-980.0,0.00021,2]
[423516784,1780182644000,-290.26104002,0.00020654,2]
[423516812,1780182644000,-471.0,0.00021,2]
[423516845,1780182644000,-1596.53597068,0.00021934,2]
[423516786,1780182644000,-200.0,0.00020654,2]
[423516785,1780182644000,-9905.59807649,0.00020654,2]
[423516794,1780182644000,-4874.72,0.00020951,2]
[423516793,1780182644000,-1994.07391152,0.000208,2]
[423516792,1780182644000,-500.91,0.00020751,2]
[423516788,1780182644000,-217.15233878,0.00020654,2]
[423516789,1780182644000,-2157.14243826,0.00020654,2]
[423516787,1780182644000,-1481.2378076,0.00020654,2]
[423516795,1780182644000,-150.99,0.00020951,2]
[423516796,1780182644000,-999.99,0.00020951,2]
[423516791,1780182644000,-151.0,0.00020656,2]
[423516790,1780182644000,-997.16350558,0.00020656,2]
[423516797,1780182644000,-9999.99,0.00020951,2]
[423516800,1780182644000,-199.85524174,0.00021,2]
[423516802,1780182644000,-421.0,0.00021,2]
[423516798,1780182644000,-5468.3,0.00020951,2]
[423516801,1780182644000,-280.0,0.00021,2]
[423516805,1780182644000,-627.0,0.00021,2]
[423516799,1780182644000,-1210.92125144,0.00021,2]
[423516808,1780182644000,-860.0,0.00021,2]
[423516804,1780182644000,-693.0,0.00021,2]
[423516809,1780182644000,-272.0,0.00021,2]
[423516803,1780182644000,-204.0,0.00021,2]
[423516807,1780182644000,-207.0,0.00021,2]
[423516806,1780182644000,-287.0,0.00021,2]
[423516819,1780182644000,-200.0,0.00021202,2]
[423516820,1780182644000,-1536.04360648,0.00021202,2]
[423516810,1780182644000,-234.0,0.00021,2]
[423516813,1780182644000,-194.802845,0.00021095,2]
[423516843,1780182644000,-151.0,0.00021931,2]
[423516850,1780182644000,-421.0,0.00022,2]
[423516848,1780182644000,-450.0,0.00022,2]
[423516882,1780182644000,-150.0,0.00022488,2]
[423516881,1780182644000,-150.0,0.00022488,2]
[423516880,1780182644000,-150.0,0.00022488,2]
[423516879,1780182644000,-150.0,0.00022488,2]
[423516887,1780182644000,-151.0,0.000225,2]
[423516898,1780182644000,-200.0,0.00022846,2]
[423516891,1780182644000,-150.0,0.00022726,4]
[423516888,1780182644000,-3663.28138146,0.000226,2]
[423516886,1780182644000,-151.0,0.000225,2]
[423516897,1780182644000,-1712.93078311,0.00022846,2]
[423516889,1780182644000,-150.0,0.00022607,4]
[423516892,1780182644000,-1124.0,0.0002282,2]
[423516890,1780182644000,-531.74340718,0.0002271,2]
[423516878,1780182644000,-150.0,0.00022488,2]
[423516894,1780182644000,-150.0,0.00022845,4]
[423516893,1780182644000,-150.0,0.00022845,4]
[423516895,1780182644000,-599.60298507,0.00022845,2]
[423516899,1780182644000,-2494.55939288,0.00022846,2]
[423516901,1780182644000,-200.0,0.00022886,2]
[423516902,1780182644000,-150.0,0.00022904,4]
[423516903,1780182644000,-150.0,0.00022964,4]
[423516904,1780182644000,-150.0,0.00022987,4]
[423516907,1780182644000,-421.0,0.00023,2]
[423516908,1780182644000,-204.0,0.00023,2]
[423516900,1780182644000,-8720.49310349,0.0002285,2]
[423516906,1780182644000,-280.0,0.00023,2]
[423516905,1780182644000,-1015.73759813,0.00023,2]
[423516846,1780182644000,-160.0,0.00022,2]
[423516896,1780182644000,-209.40437684,0.00022846,2]
[423516877,1780182644000,-253.74994461,0.00022488,2]
[423516862,1780182644000,-200.0,0.00022101,2]
[423516876,1780182644000,-223.02602026,0.00022488,2]
[423516849,1780182644000,-280.0,0.00022,2]
[423516874,1780182644000,-4705.88294185,0.00022436,2]
[423516851,1780182644000,-204.0,0.00022,2]
[423516847,1780182644000,-300.0,0.00022,2]
[423516857,1780182644000,-272.0,0.00022,2]
[423516858,1780182644000,-234.0,0.00022,2]
[423516852,1780182644000,-693.0,0.00022,2]
[423516853,1780182644000,-627.0,0.00022,2]
[423516855,1780182644000,-207.0,0.00022,2]
[423516856,1780182644000,-860.0,0.00022,2]
[423516861,1780182644000,-200.0,0.00022075,2]
[423516859,1780182644000,-980.0,0.00022,2]
[423516863,1780182644000,-500.0,0.00022226,2]
[423516867,1780182644000,-200.0,0.00022298,2]
[423516854,1780182644000,-287.0,0.00022,2]
[423516865,1780182644000,-202.05774,0.00022226,2]
[423516884,1780182644000,-151.0,0.00022497,2]
[423516864,1780182644000,-500.0,0.00022226,2]
[423516883,1780182644000,-150.0,0.00022488,2]
[423516885,1780182644000,-25806.84787357,0.000225,2]
[423516873,1780182644000,-242.256,0.00022414,2]
[423516875,1780182644000,-199.13,0.00022466,2]
[423516871,1780182644000,-7171.77534689,0.00022366,2]
[423516872,1780182644000,-3289.77,0.00022414,2]
[423516870,1780182644000,-2074.8,0.00022353,2]
[423516868,1780182644000,-1651.81367706,0.00022298,2]
[423516866,1780182644000,-201.93286098,0.00022298,2]
[423516869,1780182644000,-2405.55389863,0.00022298,2]
[423516860,1780182644000,-471.0,0.00022,2]
[423516953,1780182645000,-627.0,0.00024,2]
[423516952,1780182645000,-693.0,0.00024,2]
[423516950,1780182645000,-421.0,0.00024,2]
[423516947,1780182645000,-150.0,0.00023987,4]
[423516943,1780182645000,-225.18697532,0.00023942,2]
[423516940,1780182645000,-150.0,0.00023796,4]
[423516946,1780182645000,-2682.57183977,0.00023942,2]
[423516945,1780182645000,-200.0,0.00023942,2]
[423516939,1780182645000,-150.0,0.00023737,4]
[423516954,1780182645000,-287.0,0.00024,2]
[423516937,1780182645000,-200.0,0.00023671,2]
[423516944,1780182645000,-1842.0326633,0.00023942,2]
[423516951,1780182645000,-204.0,0.00024,2]
[423516965,1780182645000,-150.0,0.00024272,4]
[423516958,1780182645000,-234.0,0.00024,2]
[423516962,1780182645000,-150.0,0.00024034,4]
[423516961,1780182645000,-1124.0,0.00024021,2]
[423516957,1780182645000,-272.0,0.00024,2]
[423516963,1780182645000,-150.0,0.00024153,4]
[423516956,1780182645000,-860.0,0.00024,2]
[423516955,1780182645000,-207.0,0.00024,2]
[423516960,1780182645000,-471.0,0.00024,2]
[423516972,1780182645000,-1910.18787185,0.0002449,2]
[423516976,1780182645000,-150.0,0.0002457,4]
[423516970,1780182645000,-150.0,0.00024487,4]
[423516941,1780182645000,-150.0,0.00023915,4]
[423516969,1780182645000,-200.0,0.00024456,2]
[423516959,1780182645000,-980.0,0.00024,2]
[423516942,1780182645000,-150.0,0.00023915,4]
[423516924,1780182645000,-150.0,0.00023321,4]
[423516948,1780182645000,-500.0,0.00024,2]
[423516909,1780182645000,-693.0,0.00023,2]
[423516912,1780182645000,-207.0,0.00023,2]
[423516910,1780182645000,-627.0,0.00023,2]
[423516911,1780182645000,-287.0,0.00023,2]
[423516914,1780182645000,-272.0,0.00023,2]
[423516916,1780182645000,-980.0,0.00023,2]
[423516913,1780182645000,-860.0,0.00023,2]
[423516917,1780182645000,-471.0,0.00023,2]
[423516915,1780182645000,-234.0,0.00023,2]
[423516918,1780182645000,-150.0,0.00023083,4]
[423516919,1780182645000,-455.48111642,0.000231,2]
[423516923,1780182645000,-150.0,0.00023321,4]
[423516920,1780182645000,-150.0,0.00023202,4]
[423516922,1780182645000,-151.65,0.00023288,2]
[423516921,1780182645000,-150.0,0.00023202,4]
[423516925,1780182645000,-150.0,0.00023351,4]
[423516926,1780182645000,-217.15233878,0.00023394,2]
[423516964,1780182645000,-150.0,0.00024153,4]
[423516934,1780182645000,-200.0,0.00023574,2]
[423516935,1780182645000,-7171.77534689,0.00023633,2]
[423516933,1780182645000,-150.0,0.00023559,4]
[423516929,1780182645000,-2586.85809042,0.00023394,2]
[423516930,1780182645000,-150.0,0.0002344,4]